[Event "ESP-ch Teams Honor 2024"]
[Site "Melilla"]
[Date "2024.10.12"]
[Round "1.1"]
[White "Pranav Vijay"]
[Black "Puranik, Abhimanyu"]
[Result "1/2-1/2"]
[ECO "C84"]
[WhiteElo "2252"]
[BlackElo "2639"]
[Annotator "TA"]
[PlyCount "138"]
[EventDate "2024.10.11"]
[EventType "team-tourn"]
[EventCountry "ESP"]
[SourceTitle "playchess.com"]
[Source "ChessBase"]
[SourceQuality "1"]
[WhiteTeam "Benalmadena"]
[BlackTeam "Sestao"]
[TimeControl "5400+30"]

{[%evp 19,138,3,17,10,50,40,30,39,32,33,39,17,27,32,56,40,48,1,32,29,24,38,37,36,66,65,70,14,19,0,65,73,64,34,38,3,25,0,38,14,27,16,12,19,14,15,14,0,0,0,0,0,0,0,0,0,0,0,4,0,0,0,65,65,65,65,65,65,65,65,65,65,65,65,65,65,65,65,65,65,65,65,65,65,65,65,65,65,65,42,42,50,50,50,57,8,8,8,8,8,8,8,8,8,8,8,8,8,8,8,8,8,8,0,8,8,8,8,8,8,17]} 1. e4 {[%emt 0:00:02]} e5 {[%emt 0:00:23]} 2. Nf3 {[%emt 0:00:07]} Nc6 {[%emt 0:00:04]} 3. Bb5 {[%emt 0:00:08]} a6 {[%emt 0:00:25]} 4. Ba4 {[%emt 0:00:06]} Nf6 {[%emt 0:00:05]} 5. O-O {[%emt 0:00:07]} Be7 {[%emt 0:01:06]} 6. d3 {[%emt 0:00:09]} b5 {[%emt 0:02:33]} 7. Bb3 {[%emt 0:00:07]} O-O {[%emt 0:00:49]} 8. a4 {[%emt 0:00:15]} Rb8 {[%emt 0:04:19]} 9. axb5 {[%emt 0:01:22]} axb5 {[%emt 0:00:04]} 10. Nc3 {[%emt 0:00:49]} d6 {[%emt 0:02:26]} 11. Nd5 {[%emt 0:01:30]} h6 {[%emt 0:02:32]} 12. c3 {[%emt 0:01:40]} Re8 {[%emt 0:00:39]} 13. h3 {[%emt 0:04:14] White has an edge.} Be6 {[%emt 0:13:13]} 14. Nh2 {[%emt 0:21:08]} Qd7 {[%emt 0:05:34]} 15. Qf3 {[%emt 0:09:18]} Bd8 {[%emt 0:07:15]} 16. Nxf6+ {[%emt 0:15:21]} Bxf6 {[%emt 0:00:05]} 17. Bxe6 {[%emt 0:00:30]} Qxe6 {[%emt 0:08:11]} 18. Qg3 {[%emt 0:01:56]} (18. Qg4 $14) 18... Kh7 {[%emt 0:05:22]} 19. Ng4 {[%emt 0:00:46]} b4 {[%emt 0:09:03]} 20. Qf3 {[%emt 0:14:28][%cal Oc1h6]} bxc3 {[%emt 0:10:48]} 21. bxc3 {[%emt 0:00:01]} Bd8 {[%emt 0:06:41]} 22. Ra6 $1 {[%emt 0:03:40]} Rb6 {[%emt 0:01:38]} 23. Ra8 {[%emt 0:00:07]} (23. Rxb6 $14 cxb6 24. Ne3) 23... Rb8 $11 {[%emt 0:01:11]} 24. Ra6 {[%emt 0:09:21]} (24. Ra1 $11) 24... Rb6 $1 $14 {[%emt 0:00:04]} 25. Rxb6 {[%emt 0:00:16]} cxb6 {[%emt 0:00:05]} 26. Ne3 {[%emt 0:00:18]} b5 {[%emt 0:01:23]} 27. Qd1 {[%emt 0:01:11]} Ba5 {[%emt 0:02:36]} 28. Bd2 {[%emt 0:04:18]} Ne7 {[%emt 0:01:37]} 29. Qa1 {[%emt 0:01:10]} Bb6 {[%emt 0:03:33]} 30. Qa6 {[%emt 0:01:14]} Rb8 {[%emt 0:03:16]} 31. Rb1 {[%emt 0:00:23]} ({Of course not} 31. Qxb5 Bxe3 32. Qxb8 Bxd2 $15) 31... Bxe3 {[%emt 0:01:49]} 32. Bxe3 {[%emt 0:00:02]} Qd7 {[%emt 0:00:36]} 33. Bc1 {[%emt 0:04:12][%cal Be3c1,Bc1a3,Ba3d6,Bd6c7][%mdl 32]} d5 {[%emt 0:03:04]} 34. Ba3 {[%emt 0:00:04]} Ng6 {[%emt 0:01:06] Hoping for ...dxe4.} 35. Qd6 {[%emt 0:00:13]} Qxd6 {[%emt 0:00:18]} 36. Bxd6 $11 {[%emt 0:00:04][%mdl 4096] Endgame. KRB-KRN} Rd8 {[%emt 0:00:24]} 37. Bc7 {[%emt 0:00:39]} Rd7 {[%emt 0:02:59]} 38. Ba5 {[%emt 0:00:18]} d4 {[%emt 0:00:25]} 39. Rxb5 {[%emt 0:00:54]} dxc3 {[%emt 0:00:34]} 40. Bxc3 {[%emt 0:00:02]} Rxd3 {[%emt 0:01:14]} (40... f6 $11) 41. Bxe5 $14 {[%emt 0:00:01]} Nxe5 {[%emt 0:00:19]} 42. Rxe5 $11 {[%emt 0:00:01] KR-KR} g6 {[%emt 0:00:08]} 43. Rd5 {[%emt 0:02:37]} Ra3 {[%emt 0:00:08]} 44. f3 {[%emt 0:00:09]} h5 {[%emt 0:00:06]} 45. h4 {[%emt 0:00:08]} Ra2 {[%emt 0:00:09]} 46. Kh2 {[%emt 0:00:05]} Kg7 {[%emt 0:00:05]} 47. Kg3 {[%emt 0:00:08]} Rb2 {[%emt 0:00:10]} 48. Rd1 {[%emt 0:00:37]} Ra2 {[%emt 0:00:07]} 49. Rg1 {[%emt 0:00:30]} Rb2 {[%emt 0:00:28]} 50. Kf4 {[%emt 0:00:02]} Ra2 {[%emt 0:00:14]} 51. g3 {[%emt 0:00:17]} Ra3 {[%emt 0:00:09]} 52. Rd1 {[%emt 0:00:05]} Rb3 {[%emt 0:00:28]} 53. Rd4 {[%emt 0:00:07]} Ra3 {[%emt 0:00:52]} 54. e5 {[%emt 0:03:04]} Ra1 {[%emt 0:00:22]} 55. Re4 {[%emt 0:01:25]} Ra2 {[%emt 0:00:32]} 56. Rc4 {[%emt 0:03:15]} Ra1 {[%emt 0:00:16]} 57. g4 {[%emt 0:00:13]} (57. Rc8 $14) 57... hxg4 {[%emt 0:00:08] The position is equal.} 58. Kxg4 {[%emt 0:00:01]} Rg1+ {[%emt 0:01:31]} 59. Kf4 {[%emt 0:00:01]} Rh1 {[%emt 0:00:14]} 60. Kg5 {[%emt 0:00:01]} Re1 {[%emt 0:00:18]} 61. Re4 {[%emt 0:00:19]} Rf1 {[%emt 0:00:24]} 62. Kf4 {[%emt 0:00:32]} Rh1 {[%emt 0:00:09]} 63. Kg3 {[%emt 0:00:02]} Rg1+ {[%emt 0:00:05]} 64. Kf2 {[%emt 0:00:08]} Ra1 {[%emt 0:00:15]} 65. Re3 {[%emt 0:00:31]} Rh1 {[%emt 0:00:50]} 66. Re4 {[%emt 0:00:19]} Ra1 {[%emt 0:00:08]} 67. Rd4 {[%emt 0:00:03]} Rh1 {[%emt 0:01:39]} 68. Kg2 {[%emt 0:00:16]} Re1 {[%emt 0:00:03]} 69. f4 {[%emt 0:00:06]} Re3 {[%emt 0:00:04] Weighted Error Value: White=0.09 (flawless) /Black=0.06 (flawless) .  Mistake:       	White=4     	Black=1      Inaccurate:     	White=2     	Black=4      OK:         	White=19    	Black=32     Best:        	White=2     	Black=1      Strong:       	White=1     	Black=1} 1/2-1/2

[Event "ESP-ch Teams Honor 2024"]
[Site "Melilla"]
[Date "2024.10.12"]
[Round "1.2"]
[White "Svane, Frederik"]
[Black "Ter-Sahakyan, Samvel"]
[Result "1-0"]
[ECO "C82"]
[WhiteElo "2655"]
[BlackElo "2609"]
[Annotator "TA"]
[PlyCount "85"]
[EventDate "2024.10.11"]
[EventType "team-tourn"]
[EventCountry "ESP"]
[SourceTitle "playchess.com"]
[Source "ChessBase"]
[SourceQuality "1"]
[WhiteTeam "Sestao"]
[BlackTeam "Benalmadena"]
[TimeControl "5400+30"]

{[%evp 23,85,0,0,7,0,0,0,0,0,0,0,0,0,0,0,0,0,0,47,37,31,25,56,22,60,75,92,104,173,138,139,118,159,152,184,160,211,221,231,230,232,221,227,226,251,250,246,233,229,245,233,224,254,248,265,264,324,330,337,310,308,306,472,472]} 1. e4 {[%emt 0:00:05]} e5 {[%emt 0:00:07]} 2. Nf3 {[%emt 0:00:13]} Nc6 {[%emt 0:00:06]} 3. Bb5 {[%emt 0:00:25]} a6 {[%emt 0:00:23]} 4. Ba4 {[%emt 0:00:07]} Nf6 {[%emt 0:01:14]} 5. O-O {[%emt 0:00:25]} Nxe4 {[%emt 0:00:43]} 6. d4 {[%emt 0:00:35]} b5 {[%emt 0:00:25]} 7. Bb3 {[%emt 0:00:08]} d5 {[%emt 0:00:04]} 8. dxe5 {[%emt 0:00:11]} Be6 {[%emt 0:00:05]} 9. c3 {[%emt 0:00:37]} Bc5 {[%emt 0:01:41]} 10. Nbd2 {[%emt 0:13:53][%cal Bb1d2,Bd2f1,Bf1e3][%mdl 32]} O-O {[%emt 0:01:09]} 11. Bc2 {[%emt 0:00:05]} Nxf2 {[%emt 0:01:40]} 12. Rxf2 {[%emt 0:00:07]} f6 {[%emt 0:01:19]} 13. Nf1 {[%emt 0:06:41] [#] Threatens to win with Be3.} Bxf2+ {[%emt 0:00:27]} 14. Kxf2 {[%emt 0:00:04]} fxe5 {[%emt 0:00:05] aiming for ...e4.} 15. Kg1 {[%emt 0:00:04][%cal Oc2h7] Strongly threatening Bxh7+! The position is equal.} Bg4 {[%emt 0:01:16] ...e4 is the strong threat.} 16. Ne3 {[%emt 0:02:48][%csl LRd5,LRg4]} Be6 {[%emt 0:00:25]} 17. Nf1 {[%emt 0:00:06][%cal Oc2h7] [#] And now Bxh7+! would win.} Bg4 {[%emt 0:00:08] White must now prevent ...e4.} 18. Ne3 {[%emt 0:00:06][%csl LRd5,LRg4]} Be6 {[%emt 0:00:28]} 19. b3 {[%emt 0:15:04]} d4 {[%emt 0:01:18]} (19... e4 $5 20. Nd4 $8 Nxd4 21. Qxd4 Qd6 $14) 20. cxd4 {[%emt 0:08:56]} (20. Qd3 $5 g6 $8 21. cxd4 $16) 20... Nxd4 {[%emt 0:00:26]} (20... exd4 $11 {might be stronger.} 21. Qd3 g6) 21. Be4 $36 {[%emt 0:02:45][%cal Bc2e4,Be4f3,Bf3g4,Bg4h5][%mdl 2080] White has the initiative.} (21. Nxe5 Qf6 22. Bb2 (22. Qxd4 Qf2+ 23. Kh1 Qe1+) 22... Qf2+ 23. Kh1 Nxc2 24. Nxc2 c5 $11) (21. Nxd4 {simplifies} Qxd4 22. Rb1 Qxd1+ 23. Bxd1 c5 24. Rb2) 21... c6 {[%emt 0:04:39]} 22. Qe1 {[%emt 0:14:04][%mdl 1024] White has compensation.} (22. Nxe5 Qf6 23. Nd3 (23. Qxd4 Qf2+ 24. Kh1 Qe1+) 23... Rad8 $17) 22... h6 {[%emt 0:23:38]} 23. Bd2 {[%emt 0:03:56]} Qf6 {[%emt 0:15:51]} 24. Rc1 {[%emt 0:00:34]} Bd7 {[%emt 0:11:32]} 25. h3 {[%emt 0:04:24]} Nxf3+ {[%emt 0:13:39]} (25... Rac8 $16) 26. Bxf3 {[%emt 0:00:01] A strong pair of Bishops.} e4 {[%emt 0:00:12]} 27. Ng4 {[%emt 0:04:46]} Bxg4 {[%emt 0:02:48]} 28. Bxg4 {[%emt 0:00:06]} Rad8 {[%emt 0:00:33]} 29. Ba5 {[%emt 0:02:06]} Rde8 {[%emt 0:06:06]} (29... Qd4+ $16 {was necessary.} 30. Kh1 Rde8 31. Rxc6 e3) 30. Qe3 $18 {[%emt 0:02:54] Active counter play!} Rf7 {[%emt 0:04:37]} 31. Bh5 {[%emt 0:03:40]} g6 {[%emt 0:00:02]} 32. Bc3 {[%emt 0:00:35][%cal Ba5c3,Bc3d2,Bd2e3][%mdl 32]} Qf5 {[%emt 0:01:49]} 33. Be2 {[%emt 0:02:34]} Qf4 {[%emt 0:05:20]} 34. Bd2 {[%emt 0:00:01][%csl LRc6,LRf4]} Qxe3+ {[%emt 0:00:33]} 35. Bxe3 {[%emt 0:00:01]} Rf6 {[%emt 0:00:43]} 36. Bxh6 {[%emt 0:01:11]} e3 {[%emt 0:00:09]} 37. Bf3 {[%emt 0:05:06]} Rd6 {[%emt 0:00:31]} 38. Rc2 {[%emt 0:00:45]} (38. Bxc6 $2 e2 (38... Rc8 $2 39. Bd5+ Kh7 40. Rxc8 $18) 39. Re1 (39. Bxe8 $2 Rd1+ 40. Kh2 e1=Q $19) 39... Rxc6 $19) 38... c5 {[%emt 0:01:02]} 39. Kf1 {[%emt 0:00:38]} (39. Rxc5 $2 e2 40. Bxe2 Rxe2 41. Rc8+ Kh7 $19) 39... c4 {[%emt 0:01:29]} 40. bxc4 {[%emt 0:02:58]} bxc4 {[%emt 0:00:06]} 41. Rxc4 {[%emt 0:00:08]} Rd2 {[%emt 0:00:33]} 42. Be4 {[%emt 0:02:49]} a5 {[%emt 0:01:36]} (42... Rd1+ $142 43. Ke2 Rd2+ 44. Kf3 (44. Kxe3 Rxg2 45. Kf3 Rxe4 $18) 44... Rxa2 45. Bxe3 (45. Bxg6 $2 e2 $17) 45... Ra3) 43. Bxe3 {[%emt 0:01:00] Weighted Error Value: White=0.06 (flawless) /Black=0.25 (precise) .  Mistake:       	---       	Black=4      Inaccurate:     	White=1     	Black=3      OK:         	White=16    	Black=15     Best:        	White=1     	Black=1} (43. Bxg6 e2+ 44. Ke1 Rd1+ (44... Rxa2 $2 {too greedy.} 45. Bxe8 Rb2 46. Bg6 $18) 45. Kf2 e1=Q+ (45... e1=R 46. Bxe8 Rxe8 47. Ra4 $11) 46. Kf3 Qf1+ 47. Kg3 Qxc4 48. Bh5 Qd3+ 49. Kh4 Re4+ 50. Bg4 Rg1 51. Bg5 Rxg2 (51... Rxg4+ 52. Kxg4 Qe4+ 53. Bf4 Rxg2+ 54. Kh5 Qh7+ 55. Bh6 Qg6+ 56. Kh4 Qxh6#) 52. Kh5 Re5 (52... Rxa2 53. Kh4 Rg2 54. Kh5 Rgxg4 55. hxg4 Qh3+ 56. Bh4 Rxg4 57. Kh6 Qxh4#) (52... Rexg4 53. hxg4 Kh7 54. Bh6 Qg6+ 55. Kh4 Qxh6#) (52... Rxa2 53. Bh6 Rg2 54. Kh4 Re5 55. Bg5 Qh7+ 56. Bh5 Re4+ 57. Bf4 Rxf4#) (52... Rexg4 53. hxg4 Qd7 54. Bf6 Qxg4+ 55. Kh6 Qg6#)) 1-0

[Event "ESP-ch Teams Honor 2024"]
[Site "Melilla"]
[Date "2024.10.12"]
[Round "1.3"]
[White "Grigoryan, Karen H."]
[Black "Suarez Garcia, Carlos"]
[Result "1-0"]
[ECO "D61"]
[WhiteElo "2582"]
[BlackElo "2441"]
[Annotator "TA"]
[PlyCount "99"]
[EventDate "2024.10.11"]
[EventType "team-tourn"]
[EventCountry "ESP"]
[SourceTitle "playchess.com"]
[Source "ChessBase"]
[SourceQuality "1"]
[WhiteTeam "Benalmadena"]
[BlackTeam "Sestao"]
[TimeControl "5400+30"]

{[%evp 16,99,22,29,25,26,12,12,14,0,29,15,16,11,39,20,26,33,66,39,38,18,31,26,26,32,35,8,19,7,12,7,20,12,27,0,-17,0,9,4,27,-7,45,58,50,20,82,81,64,66,81,83,106,117,118,128,179,184,170,108,243,190,354,348,360,362,487,382,494,466,548,496,705,658,746,781,860,909,900,840,899,925,1125,1099,1055,1030]} 1. d4 {[%emt 0:00:52]} d5 {[%emt 0:00:33]} 2. c4 {[%emt 0:00:23]} e6 {[%emt 0:00:39]} 3. Nc3 {[%emt 0:00:23]} Nf6 {[%emt 0:02:03]} 4. Bg5 {[%emt 0:00:36]} Be7 {[%emt 0:00:11]} 5. e3 {[%emt 0:00:17]} O-O {[%emt 0:02:01]} 6. Qc2 {[%emt 0:00:46]} Nbd7 {[%emt 0:04:22]} 7. Nf3 {[%emt 0:00:53]} h6 {[%emt 0:08:40]} 8. Bh4 {[%emt 0:00:53]} dxc4 {[%emt 0:12:03]} 9. Bxc4 {[%emt 0:00:08]} a6 {[%emt 0:00:04]} 10. a4 {[%emt 0:05:52]} b6 {[%emt 0:00:32]} 11. Rd1 {[%emt 0:01:34]} Bb7 {[%emt 0:00:47] Die Stellung ist ausgeglichen.} 12. e4 {[%emt 0:00:57]} Nh5 {[%emt 0:03:41]} 13. Bxe7 {[%emt 0:00:48]} Qxe7 {[%emt 0:00:03]} 14. O-O {[%emt 0:00:20]} Rac8 {[%emt 0:07:38]} 15. Rfe1 {[%emt 0:00:59]} Rfd8 {[%emt 0:06:18]} 16. d5 {[%emt 0:01:39]} e5 {[%emt 0:01:49]} 17. g3 {[%emt 0:00:30] Weiß steht aktiver.} Nhf6 {[%emt 0:00:42]} 18. Qe2 {[%emt 0:01:39]} Ra8 {[%emt 0:01:28]} 19. Nh4 {[%cal Od5d6]} Ne8 {[%emt 0:01:17]} 20. Nf5 {[%emt 0:02:16] Schwarz ist schwach auf den weissen Feldern} Qf8 {[%emt 0:03:02]} 21. h4 {[%emt 0:14:43]} Nd6 {[%emt 0:04:51]} 22. Nxd6 {[%emt 0:00:48]} cxd6 {[%emt 0:05:19]} 23. b4 {[%emt 0:03:42]} Rdc8 {[%emt 0:01:50]} 24. Rb1 {[%emt 0:03:22]} Rc7 {[%emt 0:05:11]} 25. Rec1 {[%emt 0:02:45]} Rac8 {[%emt 0:03:52]} 26. Na2 {[%emt 0:01:10]} Nb8 {[%emt 0:04:45]} 27. Qd3 {[%emt 0:01:48]} Qe8 {[%emt 0:01:22]} 28. Qb3 {[%emt 0:00:58]} Qf8 {[%emt 0:03:23]} (28... f5 $11) 29. Bf1 $14 {[%emt 0:01:43]} Rxc1 {[%emt 0:00:38]} 30. Nxc1 {[%emt 0:00:05][%cal Ba2c1,Bc1d3,Bd3b2,Bb2c4,Bc4d6,Bd6c4,Bc4e5,Be5c6][%mdl 32]} Qd8 {[%emt 0:01:59]} (30... Nd7 $11) 31. Nd3 $16 {[%emt 0:00:46]} Nd7 {[%emt 0:02:38][%cal Of7f5]} 32. Nb2 $1 {[%emt 0:00:43]} Nf6 {[%emt 0:01:57]} 33. Qd3 {[%emt 0:01:31]} Qc7 {[%emt 0:02:40] [#]} 34. Nc4 $1 {[%emt 0:01:30]} Rb8 {[%emt 0:00:25]} 35. Qe3 {[%emt 0:00:46]} Bc8 {[%emt 0:03:02]} (35... b5 $16 36. axb5 axb5) 36. Rc1 $18 {[%emt 0:00:26][%cal Oc4e5] Droht stark Nxe5!} Qd8 {[%emt 0:00:03]} 37. b5 {[%emt 0:03:07]} (37. a5 $18) 37... a5 {[%emt 0:02:27] Danach kann Schwarz die Partie nicht mehr halten.} (37... axb5 $16 {ist eine bessere Verteidigung.} 38. axb5 Bb7 39. Qxb6 (39. Nxb6 Nxe4 40. Qxe4 Qxb6 $16) 39... Nxe4) 38. Be2 {[%emt 0:01:29]} Nd7 $2 {[%emt 0:01:54]} (38... Bh3 {war angesagt.} 39. Kh2 Bg4) 39. Nxd6 {[%emt 0:00:18]} Nc5 {[%emt 0:00:28]} 40. Nc4 {[%emt 0:00:40]} Nxa4 {[%emt 0:00:32]} 41. Nxe5 {[%emt 0:00:07] Schwarz muss nun Nc6 beachten.} Qe8 {[%emt 0:01:10]} 42. Nc6 {[%emt 0:00:41] Weiß steht klar auf Gewinn.} Ra8 {[%emt 0:00:03]} 43. d6 {[%emt 0:03:19]} Nc5 {[%emt 0:00:49]} (43... Be6 $142 44. Ne7+ Kh8) 44. Ne7+ {[%emt 0:01:16]} Kh8 {[%emt 0:00:07]} 45. Nd5 {[%emt 0:00:05]} Qd8 {[%emt 0:02:11] [#]} 46. Nxb6 $1 {[%emt 0:00:22][%mdl 512]} Qxb6 {[%emt 0:00:03]} 47. Qxc5 {[%emt 0:00:07]} Qxc5 {[%emt 0:00:57]} 48. Rxc5 {[%emt 0:00:07]} a4 {[%emt 0:00:03][%cal Ba5a4,Ba4a3][%mdl 32]} 49. Bc4 {[%emt 0:00:11]} a3 {[%emt 0:00:51]} 50. Bxf7 {[%emt 0:00:12] Gewichteter Fehlerwert: Weiß=0.07 (makellos) /Schwarz=0.30.  Fehler:       	Weiß=1     	Schwarz=6     Ungenau:       	Weiß=5     	Schwarz=4     OK:         	Weiß=16    	Schwarz=10    Bester:       	Weiß=5     	---        Stark:        	Weiß=2     	---} 1-0

[Event "ESP-ch Teams Honor 2024"]
[Site "Melilla"]
[Date "2024.10.12"]
[Round "1.4"]
[White "Del Rio De Angelis, Salvador G."]
[Black "Ladron De Guevara Pinto, Paolo"]
[Result "1-0"]
[ECO "D12"]
[WhiteElo "2387"]
[BlackElo "2388"]
[Annotator "RC"]
[PlyCount "59"]
[EventDate "2024.10.11"]
[EventType "team-tourn"]
[EventCountry "ESP"]
[SourceTitle "playchess.com"]
[Source "ChessBase"]
[SourceQuality "1"]
[WhiteTeam "SESTAO HOTEL NAVAL"]
[BlackTeam "Benalmadena"]
[TimeControl "5400+30"]

1. d4 {[%emt 0:00:08]} d5 {[%emt 0:00:10]} 2. c4 {[%emt 0:00:16]} c6 {[%emt 0:00:11]} 3. Nf3 {[%emt 0:00:41]} Nf6 {[%emt 0:00:28]} 4. e3 {[%emt 0:00:20]} Bf5 {[%emt 0:01:39]} 5. Nc3 {[%emt 0:00:18]} e6 {[%emt 0:00:20]} 6. Nh4 {[%emt 0:00:18]} Be4 {[%emt 0:00:08]} 7. f3 {[%emt 0:00:57]} Bg6 {[%emt 0:00:06]} 8. Bd2 {[%emt 0:01:13]} Be7 {[%emt 0:04:28]} 9. Qb3 {[%emt 0:02:22]} Qc7 {[%emt 0:06:26]} 10. O-O-O {[%emt 0:01:41]} a6 {[%emt 0:04:55]} 11. Nxg6 {[%emt 0:01:09]} hxg6 {[%emt 0:01:12]} 12. Kb1 {[%emt 0:00:35]} dxc4 {[%emt 0:11:24]} 13. Qxc4 {[%emt 0:00:28]} b5 {[%emt 0:21:35]} 14. Qe2 {[%emt 0:00:40]} c5 {[%emt 0:10:01]} 15. dxc5 {[%emt 0:05:26]} Qxc5 {[%emt 0:03:52]} 16. Rc1 {[%emt 0:06:02]} Qb6 {[%emt 0:13:27]} 17. g4 {[%emt 0:03:02]} Nbd7 {[%emt 0:04:58]} 18. g5 {[%emt 0:01:03]} Nh7 {[%emt 0:03:16]} 19. f4 {[%emt 0:00:43]} Rd8 {[%emt 0:01:56]} 20. Bg2 {[%emt 0:03:58]} Nhf8 {[%emt 0:02:28]} 21. Ne4 {[%emt 0:03:01]} b4 {[%emt 0:04:39]} 22. Rc6 {[%emt 0:02:30]} Qb5 {[%emt 0:03:04]} 23. Qxb5 {[%emt 0:01:16]} axb5 {[%emt 0:00:04]} 24. Nd6+ {[%emt 0:00:25]} Bxd6 {[%emt 0:00:04]} 25. Rxd6 {[%emt 0:00:04]} Nb8 {[%emt 0:01:27]} 26. Bxb4 {[%emt 0:02:33]} e5 {[%emt 0:00:36]} 27. Bf1 {[%emt 0:01:20]} Rxd6 {[%emt 0:00:26]} 28. Bxd6 {[%emt 0:00:07]} Nbd7 {[%emt 0:00:03]} 29. Bxb5 {[%emt 0:00:19]} Rh3 {[%emt 0:00:17]} 30. Bxf8 {[%emt 0:00:18]} 1-0

[Event "ESP-ch Teams Honor 2024"]
[Site "Melilla"]
[Date "2024.10.12"]
[Round "1.5"]
[White "Lin, Yingrui"]
[Black "Trigo Urquijo, Sergio"]
[Result "1/2-1/2"]
[ECO "A05"]
[WhiteElo "2378"]
[BlackElo "2384"]
[Annotator "RC"]
[PlyCount "58"]
[EventDate "2024.10.11"]
[EventType "team-tourn"]
[EventCountry "ESP"]
[SourceTitle "playchess.com"]
[Source "ChessBase"]
[SourceQuality "1"]
[WhiteTeam "Benalmadena"]
[BlackTeam "Sestao"]
[TimeControl "5400+30"]

1. Nf3 {[%emt 0:00:14]} Nf6 {[%emt 0:00:48]} 2. g3 {[%emt 0:00:09]} b5 {[%emt 0:01:08]} 3. Bg2 {[%emt 0:02:38]} Bb7 {[%emt 0:00:23]} 4. O-O {[%emt 0:17:28]} e6 {[%emt 0:01:36]} 5. d3 {[%emt 0:06:37]} Be7 {[%emt 0:09:46]} 6. e4 {[%emt 0:02:40]} d6 {[%emt 0:01:44]} 7. a4 {[%emt 0:06:36]} b4 {[%emt 0:02:44]} 8. Nbd2 {[%emt 0:01:18]} O-O {[%emt 0:06:27]} 9. Re1 {[%emt 0:05:33]} c5 {[%emt 0:02:14]} 10. c3 {[%emt 0:00:34]} Nbd7 {[%emt 0:05:17]} 11. h3 {[%emt 0:07:29]} Qc7 {[%emt 0:06:31]} 12. Nc4 {[%emt 0:03:38]} Rad8 {[%emt 0:07:37]} 13. Bf4 {[%emt 0:06:34]} e5 {[%emt 0:14:35]} 14. Bg5 {[%emt 0:05:49]} Rfe8 {[%emt 0:04:19]} 15. cxb4 {[%emt 0:15:53]} cxb4 {[%emt 0:00:24]} 16. Rc1 {[%emt 0:00:40]} Nc5 {[%emt 0:02:12]} 17. Ne3 {[%emt 0:04:40]} h6 {[%emt 0:04:12]} 18. Bxf6 {[%emt 0:03:08]} Bxf6 {[%emt 0:00:20]} 19. Ng4 {[%emt 0:00:45]} Be7 {[%emt 0:01:26]} 20. d4 {[%emt 0:00:16]} exd4 {[%emt 0:01:19]} 21. Nxd4 {[%emt 0:00:03]} Bf8 {[%emt 0:01:08]} 22. Nf5 {[%emt 0:01:18]} h5 {[%emt 0:05:15]} 23. Nf6+ {[%emt 0:03:18]} gxf6 {[%emt 0:00:36]} 24. Qxh5 {[%emt 0:00:24]} Bc8 {[%emt 0:02:37]} 25. Qg4+ {[%emt 0:02:10]} Kh8 {[%emt 0:00:27]} 26. Qh5+ {[%emt 0:00:05]} Kg8 {[%emt 0:00:08]} 27. Qg4+ {[%emt 0:01:32]} Kh8 {[%emt 0:00:21]} 28. Qh5+ {[%emt 0:00:25]} Kg8 {[%emt 0:00:07]} 29. Qg4+ {[%emt 0:00:08]} Kh8 1/2-1/2